[Event "Early-Titled-Tuesday-Blitz-February-20-2024"]
[Site "Chess.com"]
[Date "2024.02.20"]
[Round "2"]
[White "esrosenberg"]
[Black "UnTucopalaTimba"]
[Result "1-0"]
[WhiteElo "2425"]
[BlackElo "1993"]
[TimeControl "180+1"]
[EndTime "8:18:32 PST"]
[Termination "esrosenberg won by resignation"]

1. c4 {[%clk 0:03:00.9]} 1... c6 {[%clk 0:02:58.4]} 2. Nf3 {[%clk 0:02:58.9]}
2... d5 {[%clk 0:02:57.7]} 3. g3 {[%clk 0:02:58.9]} 3... Nf6 {[%clk 0:02:55.4]}
4. Bg2 {[%clk 0:02:51.8]} 4... e6 {[%clk 0:02:55]} 5. O-O {[%clk 0:02:48.2]}
5... Be7 {[%clk 0:02:53.6]} 6. d4 {[%clk 0:02:47.4]} 6... O-O {[%clk 0:02:50.2]}
7. Qc2 {[%clk 0:02:47.2]} 7... Nbd7 {[%clk 0:02:45]} 8. Nbd2 {[%clk 0:02:45.5]}
8... dxc4 {[%clk 0:02:43.2]} 9. Nxc4 {[%clk 0:02:41]} 9... Nb6 {[%clk
0:02:41.9]} 10. Nce5 {[%clk 0:02:40.9]} 10... Bd6 {[%clk 0:02:35.7]} 11. Rd1
{[%clk 0:02:28.8]} 11... Re8 {[%clk 0:02:30.3]} 12. Ng5 {[%clk 0:02:27.1]} 12...
Rf8 {[%clk 0:02:21.9]} 13. b3 {[%clk 0:01:56.1]} 13... h6 {[%clk 0:02:16.5]} 14.
Ngxf7 {[%clk 0:01:53.4]} 14... Rxf7 {[%clk 0:02:13.8]} 15. Nxf7 {[%clk
0:01:54.3]} 15... Kxf7 {[%clk 0:02:13.3]} 16. e4 {[%clk 0:01:52.8]} 16... Bb4
{[%clk 0:02:07.4]} 17. a3 {[%clk 0:01:47.6]} 17... Bf8 {[%clk 0:02:02.7]} 18.
Bb2 {[%clk 0:01:47.1]} 18... Qc7 {[%clk 0:01:51.2]} 19. f4 {[%clk 0:01:44.9]}
19... Bd7 {[%clk 0:01:32.7]} 20. Bf3 {[%clk 0:01:44.8]} 20... Kg8 {[%clk
0:01:26.6]} 21. Rac1 {[%clk 0:01:44.5]} 21... Qd8 {[%clk 0:01:19.2]} 22. Kg2
{[%clk 0:01:38.1]} 22... Qe8 {[%clk 0:01:16.4]} 23. Rd2 {[%clk 0:01:26.5]} 23...
Qf7 {[%clk 0:01:10.7]} 24. Rcd1 {[%clk 0:01:25.1]} 24... Re8 {[%clk 0:01:04.9]}
25. Re1 {[%clk 0:01:18.4]} 25... Kh8 {[%clk 0:01:02.3]} 26. Qd1 {[%clk
0:01:18.4]} 26... Qe7 {[%clk 0:00:49.2]} 27. Qe2 {[%clk 0:01:16.3]} 27... c5
{[%clk 0:00:44.2]} 28. dxc5 {[%clk 0:01:12.9]} 28... Qxc5 {[%clk 0:00:44]} 29.
b4 {[%clk 0:00:58.6]} 29... Qc4 {[%clk 0:00:39.2]} 30. Bxf6 {[%clk 0:00:54.9]}
30... Qxe2+ {[%clk 0:00:37.6]} 31. Rexe2 {[%clk 0:00:49.3]} 31... gxf6 {[%clk
0:00:36.9]} 32. e5 {[%clk 0:00:48.5]} 32... Bb5 {[%clk 0:00:33.6]} 33. Re1
{[%clk 0:00:45.2]} 33... fxe5 {[%clk 0:00:30.6]} 34. Rxe5 {[%clk 0:00:44]} 34...
Nc4 {[%clk 0:00:29.7]} 35. Rxb5 {[%clk 0:00:39.6]} 35... Nxd2 {[%clk 0:00:29.5]}
36. Rxb7 {[%clk 0:00:40.3]} 36... Nxf3 {[%clk 0:00:28.7]} 37. Kxf3 {[%clk
0:00:41.2]} 37... Bg7 {[%clk 0:00:24.8]} 38. Rxa7 {[%clk 0:00:39.7]} 38... Rc8
{[%clk 0:00:23.3]} 39. b5 {[%clk 0:00:38.5]} 39... Bd4 {[%clk 0:00:21]} 40. Ra6
{[%clk 0:00:32.8]} 40... Bc5 {[%clk 0:00:19.6]} 41. a4 {[%clk 0:00:31.5]} 41...
Rd8 {[%clk 0:00:16.9]} 42. Rxe6 {[%clk 0:00:30]} 42... Rd4 {[%clk 0:00:16]} 43.
Rxh6+ {[%clk 0:00:28.1]} 43... Kg7 {[%clk 0:00:15.6]} 44. Ra6 {[%clk 0:00:29]}
44... Rb4 {[%clk 0:00:15.4]} 45. f5 {[%clk 0:00:26.2]} 45... Rb2 {[%clk
0:00:14.7]} 46. h4 {[%clk 0:00:25.5]} 46... Rf2+ {[%clk 0:00:14.2]} 47. Kg4
{[%clk 0:00:24.3]} 47... Rb2 {[%clk 0:00:13.8]} 48. h5 {[%clk 0:00:19.4]} 48...
Rb4+ {[%clk 0:00:13.5]} 49. Kf3 {[%clk 0:00:18.2]} 49... Rb3+ {[%clk 0:00:13.5]}
50. Kf4 {[%clk 0:00:17.9]} 50... Rb4+ {[%clk 0:00:13.7]} 51. Ke5 {[%clk
0:00:17.7]} 51... Bf2 {[%clk 0:00:13.5]} 52. h6+ {[%clk 0:00:16.8]} 52... Kh7
{[%clk 0:00:13.4]} 53. Rg6 {[%clk 0:00:15.9]} 53... Bd4+ {[%clk 0:00:12.1]} 54.
Kd5 {[%clk 0:00:15.7]} 54... Bf2 {[%clk 0:00:11.6]} 55. g4 {[%clk 0:00:15.6]}
55... Rd4+ {[%clk 0:00:11.5]} 56. Ke5 {[%clk 0:00:15.5]} 56... Rxa4 {[%clk
0:00:11.1]} 57. g5 {[%clk 0:00:15.7]} 57... Bg3+ {[%clk 0:00:11.1]} 58. Kd5
{[%clk 0:00:15.6]} 58... Rb4 {[%clk 0:00:10.8]} 59. b6 {[%clk 0:00:15]} 59...
Rd4+ {[%clk 0:00:10.2]} 60. Kxd4 {[%clk 0:00:14.8]} 60... Bf2+ {[%clk
0:00:09.2]} 61. Ke5 {[%clk 0:00:14.2]} 1-0

[Event "Early-Titled-Tuesday-Blitz-February-20-2024"]
[Site "Chess.com"]
[Date "2024.02.20"]
[Round "2"]
[White "LuisFSiles"]
[Black "colegiodemadrid"]
[Result "1-0"]
[WhiteElo "2291"]
[BlackElo "2508"]
[TimeControl "180+1"]
[EndTime "8:18:33 PST"]
[Termination "LuisFSiles won on time"]

1. e4 {[%clk 0:03:00.9]} 1... c6 {[%clk 0:02:56.4]} 2. d4 {[%clk 0:03:00.5]}
2... d5 {[%clk 0:02:57]} 3. exd5 {[%clk 0:03:01.4]} 3... cxd5 {[%clk 0:02:57.1]}
4. c4 {[%clk 0:03:02.3]} 4... Nf6 {[%clk 0:02:56.5]} 5. Nc3 {[%clk 0:03:02.9]}
5... g6 {[%clk 0:02:56.5]} 6. cxd5 {[%clk 0:03:02.6]} 6... Nxd5 {[%clk
0:02:55.3]} 7. Qb3 {[%clk 0:03:02.1]} 7... Nxc3 {[%clk 0:02:53.5]} 8. Bc4 {[%clk
0:03:02]} 8... e6 {[%clk 0:02:53.8]} 9. bxc3 {[%clk 0:03:01.5]} 9... Be7 {[%clk
0:02:50]} 10. Bh6 {[%clk 0:02:59.8]} 10... Bf8 {[%clk 0:02:49.7]} 11. Bxf8
{[%clk 0:02:49.9]} 11... Kxf8 {[%clk 0:02:50.6]} 12. h4 {[%clk 0:02:50.2]} 12...
h5 {[%clk 0:02:49.5]} 13. Nf3 {[%clk 0:02:49.7]} 13... Nc6 {[%clk 0:02:49.2]}
14. O-O {[%clk 0:02:45.8]} 14... Kg7 {[%clk 0:02:49.3]} 15. Bd3 {[%clk
0:02:39.5]} 15... Na5 {[%clk 0:02:43.6]} 16. Qb2 {[%clk 0:02:23.6]} 16... b6
{[%clk 0:02:43.2]} 17. c4 {[%clk 0:02:23.5]} 17... Qf6 {[%clk 0:02:42.5]} 18.
Be4 {[%clk 0:02:11.6]} 18... Rb8 {[%clk 0:02:34.5]} 19. Qb5 {[%clk 0:01:54]}
19... Rd8 {[%clk 0:02:22.9]} 20. Rad1 {[%clk 0:01:52]} 20... Bd7 {[%clk
0:02:20.5]} 21. Qb4 {[%clk 0:01:36.2]} 21... Rdc8 {[%clk 0:02:20.2]} 22. Ne5
{[%clk 0:01:29]} 22... Be8 {[%clk 0:02:13.3]} 23. g3 {[%clk 0:01:25]} 23... Rd8
{[%clk 0:02:03.1]} 24. Rd3 {[%clk 0:01:18.8]} 24... Rxd4 {[%clk 0:01:21.4]} 25.
Rxd4 {[%clk 0:01:13.1]} 25... Qxe5 {[%clk 0:01:21.9]} 26. Rfd1 {[%clk
0:01:10.1]} 26... Rc8 {[%clk 0:01:09.3]} 27. Bg2 {[%clk 0:00:59.3]} 27... Bc6
{[%clk 0:01:02.9]} 28. Qa3 {[%clk 0:00:46]} 28... Bxg2 {[%clk 0:00:59.5]} 29.
Kxg2 {[%clk 0:00:46.9]} 29... Nc6 {[%clk 0:00:47]} 30. Rd7 {[%clk 0:00:42.2]}
30... Qe4+ {[%clk 0:00:45.9]} 31. Kg1 {[%clk 0:00:37.3]} 31... Ne5 {[%clk
0:00:45.7]} 32. Rxa7 {[%clk 0:00:30.3]} 32... Nf3+ {[%clk 0:00:43.3]} 33. Kf1
{[%clk 0:00:30.5]} 33... Qxc4+ {[%clk 0:00:37]} 34. Qd3 {[%clk 0:00:28.5]} 34...
Qc6 {[%clk 0:00:24.1]} 35. Qd7 {[%clk 0:00:28.5]} 35... Qxd7 {[%clk 0:00:22.3]}
36. Rdxd7 {[%clk 0:00:27.4]} 36... Ne5 {[%clk 0:00:22.6]} 37. Rdb7 {[%clk
0:00:25.7]} 37... Rc1+ {[%clk 0:00:20]} 38. Kg2 {[%clk 0:00:25.1]} 38... Rc2
{[%clk 0:00:19.3]} 39. Rxb6 {[%clk 0:00:22.5]} 39... Ng4 {[%clk 0:00:18.9]} 40.
Rxe6 {[%clk 0:00:20.8]} 40... Rxf2+ {[%clk 0:00:19]} 41. Kg1 {[%clk 0:00:21.1]}
41... Rf3 {[%clk 0:00:14.8]} 42. Kg2 {[%clk 0:00:19.4]} 42... Rf2+ {[%clk
0:00:14.4]} 43. Kg1 {[%clk 0:00:19.5]} 43... Rf3 {[%clk 0:00:10.4]} 44. a4
{[%clk 0:00:19.5]} 44... Rxg3+ {[%clk 0:00:10.2]} 45. Kf1 {[%clk 0:00:19.1]}
45... Rf3+ {[%clk 0:00:10.1]} 46. Ke1 {[%clk 0:00:18.4]} 46... Ra3 {[%clk
0:00:09]} 47. a5 {[%clk 0:00:18.7]} 47... Rxa5 {[%clk 0:00:08.4]} 48. Rxg6+
{[%clk 0:00:16.6]} 48... Kxg6 {[%clk 0:00:07.1]} 49. Rxa5 {[%clk 0:00:17.2]}
49... Nh6 {[%clk 0:00:06.9]} 50. Rg5+ {[%clk 0:00:17.3]} 50... Kf6 {[%clk
0:00:05.5]} 51. Rxh5 {[%clk 0:00:18.2]} 51... Nf5 {[%clk 0:00:05.4]} 52. Kf2
{[%clk 0:00:17.4]} 52... Ke6 {[%clk 0:00:04.4]} 53. Kf3 {[%clk 0:00:16.2]} 53...
f6 {[%clk 0:00:05]} 54. Rh8 {[%clk 0:00:15.1]} 54... Kf7 {[%clk 0:00:04.7]} 55.
Kf4 {[%clk 0:00:13.7]} 55... Ne7 {[%clk 0:00:03.8]} 56. Ra8 {[%clk 0:00:12.6]}
56... Kg6 {[%clk 0:00:02.9]} 57. Ra5 {[%clk 0:00:10.4]} 57... Ng8 {[%clk
0:00:01.7]} 58. h5+ {[%clk 0:00:10.7]} 58... Kh6 {[%clk 0:00:01.2]} 59. Rf5
{[%clk 0:00:08.3]} 1-0

[Event "Early-Titled-Tuesday-Blitz-February-20-2024"]
[Site "Chess.com"]
[Date "2024.02.20"]
[Round "2"]
[White "RedFirePanda"]
[Black "cristianserban1"]
[Result "1-0"]
[WhiteElo "2583"]
[BlackElo "2477"]
[TimeControl "180+1"]
[EndTime "8:18:35 PST"]
[Termination "RedFirePanda won on time"]

1. d4 {[%clk 0:03:00.9]} 1... g6 {[%clk 0:03:00.9]} 2. Bf4 {[%clk 0:02:59.8]}
2... Bg7 {[%clk 0:03:01.3]} 3. c3 {[%clk 0:03:00]} 3... d6 {[%clk 0:03:01]} 4.
e3 {[%clk 0:02:59.4]} 4... e5 {[%clk 0:03:00.9]} 5. dxe5 {[%clk 0:02:58.4]} 5...
dxe5 {[%clk 0:03:01.8]} 6. Qxd8+ {[%clk 0:02:58.3]} 6... Kxd8 {[%clk 0:03:02.7]}
7. Bg3 {[%clk 0:02:58.6]} 7... Be6 {[%clk 0:02:58.3]} 8. Nd2 {[%clk 0:02:56.5]}
8... Nd7 {[%clk 0:02:50]} 9. Bc4 {[%clk 0:02:52.6]} 9... Ke7 {[%clk 0:02:47.5]}
10. Bxe6 {[%clk 0:02:50]} 10... Kxe6 {[%clk 0:02:47.7]} 11. Ngf3 {[%clk
0:02:43.7]} 11... h6 {[%clk 0:02:43.6]} 12. O-O-O {[%clk 0:02:33.4]} 12... Ne7
{[%clk 0:02:43.8]} 13. Nc4 {[%clk 0:02:20]} 13... Nc6 {[%clk 0:02:43.3]} 14. Rd2
{[%clk 0:02:16]} 14... Rad8 {[%clk 0:02:39.9]} 15. Rhd1 {[%clk 0:02:15.5]} 15...
Nb6 {[%clk 0:02:37.1]} 16. Rxd8 {[%clk 0:02:08.9]} 16... Rxd8 {[%clk 0:02:35.5]}
17. Rxd8 {[%clk 0:02:07.7]} 17... Nxd8 {[%clk 0:02:36.4]} 18. Ncxe5 {[%clk
0:02:02.6]} 18... c6 {[%clk 0:02:18.9]} 19. Nd4+ {[%clk 0:01:54.3]} 19... Ke7
{[%clk 0:02:18.9]} 20. Nd3 {[%clk 0:01:47.8]} 20... Nd7 {[%clk 0:02:17.8]} 21.
Kc2 {[%clk 0:01:40.3]} 21... a6 {[%clk 0:02:17]} 22. Nb3 {[%clk 0:01:39.3]}
22... Ne6 {[%clk 0:02:15.1]} 23. Nd4 {[%clk 0:01:36.4]} 23... Nd8 {[%clk
0:02:08.2]} 24. h3 {[%clk 0:01:32]} 24... c5 {[%clk 0:02:06]} 25. Ne2 {[%clk
0:01:28.3]} 25... g5 {[%clk 0:02:02.5]} 26. c4 {[%clk 0:01:22.5]} 26... Ne6
{[%clk 0:01:57.3]} 27. Nc3 {[%clk 0:01:20]} 27... Bxc3 {[%clk 0:01:45.5]} 28.
Kxc3 {[%clk 0:01:20.9]} 28... f5 {[%clk 0:01:43.8]} 29. a3 {[%clk 0:01:12.4]}
29... Nf6 {[%clk 0:01:42.7]} 30. f3 {[%clk 0:01:09.2]} 30... Nh5 {[%clk
0:01:40.8]} 31. Be5 {[%clk 0:01:07.2]} 31... b6 {[%clk 0:01:37.8]} 32. b4 {[%clk
0:01:06]} 32... f4 {[%clk 0:01:15.7]} 33. exf4 {[%clk 0:01:03.8]} 33... gxf4
{[%clk 0:01:16.6]} 34. bxc5 {[%clk 0:01:02.7]} 34... bxc5 {[%clk 0:01:17.5]} 35.
Kb3 {[%clk 0:00:55.3]} 35... Kd7 {[%clk 0:01:16.9]} 36. Ka4 {[%clk 0:00:49.8]}
36... Kc6 {[%clk 0:01:17.4]} 37. Ka5 {[%clk 0:00:50]} 37... Kb7 {[%clk
0:01:17.4]} 38. Ka4 {[%clk 0:00:50.4]} 38... Kc6 {[%clk 0:01:17.2]} 39. Kb3
{[%clk 0:00:49.8]} 39... Kb6 {[%clk 0:01:14.5]} 40. Kc3 {[%clk 0:00:43.2]} 40...
Ka5 {[%clk 0:01:08.8]} 41. Bd6 {[%clk 0:00:43.1]} 41... Kb6 {[%clk 0:01:07.3]}
42. Ne5 {[%clk 0:00:36]} 42... Ng3 {[%clk 0:01:03.4]} 43. Ng6 {[%clk 0:00:27.4]}
43... Kc6 {[%clk 0:01:00.1]} 44. Bb8 {[%clk 0:00:22.7]} 44... Nh5 {[%clk
0:00:50.2]} 45. Kd3 {[%clk 0:00:20.3]} 45... Kb7 {[%clk 0:00:47.6]} 46. Be5
{[%clk 0:00:19.7]} 46... Kc6 {[%clk 0:00:43.5]} 47. a4 {[%clk 0:00:16.7]} 47...
Kb6 {[%clk 0:00:29.5]} 48. Ke4 {[%clk 0:00:16.3]} 48... Ka5 {[%clk 0:00:25.7]}
49. Kd5 {[%clk 0:00:12.8]} 49... Nd8 {[%clk 0:00:15]} 50. Bc7+ {[%clk
0:00:11.5]} 50... Kxa4 {[%clk 0:00:14.9]} 51. Bxd8 {[%clk 0:00:11.9]} 51... Kb3
{[%clk 0:00:15.3]} 52. Kxc5 {[%clk 0:00:11.8]} 52... a5 {[%clk 0:00:15.3]} 53.
Ne5 {[%clk 0:00:11.7]} 1-0

[Event "Early-Titled-Tuesday-Blitz-February-20-2024"]
[Site "Chess.com"]
[Date "2024.02.20"]
[Round "2"]
[White "GeorgiosSouleidis"]
[Black "Happy1712Drummer"]
[Result "1-0"]
[WhiteElo "2688"]
[BlackElo "2382"]
[TimeControl "180+1"]
[EndTime "8:18:36 PST"]
[Termination "GeorgiosSouleidis won on time"]

1. e4 {[%clk 0:03:00.9]} 1... c5 {[%clk 0:02:57.7]} 2. Be2 {[%clk 0:03:00.3]}
2... g6 {[%clk 0:02:56.4]} 3. d3 {[%clk 0:03:00.8]} 3... Bg7 {[%clk 0:02:57]} 4.
f4 {[%clk 0:03:01.4]} 4... d6 {[%clk 0:02:55.7]} 5. Nf3 {[%clk 0:03:01.9]} 5...
Nc6 {[%clk 0:02:54.5]} 6. O-O {[%clk 0:03:02.2]} 6... Nf6 {[%clk 0:02:55]} 7. c3
{[%clk 0:03:02.8]} 7... O-O {[%clk 0:02:55.4]} 8. Kh1 {[%clk 0:03:03.4]} 8... b5
{[%clk 0:02:53.1]} 9. a3 {[%clk 0:03:03]} 9... Bb7 {[%clk 0:02:53.1]} 10. Be3
{[%clk 0:03:02.9]} 10... Rc8 {[%clk 0:02:52.7]} 11. Nbd2 {[%clk 0:03:03.3]}
11... Qc7 {[%clk 0:02:45.4]} 12. Rc1 {[%clk 0:02:58.8]} 12... Rfd8 {[%clk
0:02:45.1]} 13. d4 {[%clk 0:02:58.7]} 13... cxd4 {[%clk 0:02:31.6]} 14. cxd4
{[%clk 0:02:58.9]} 14... Qa5 {[%clk 0:02:29.8]} 15. d5 {[%clk 0:02:10.7]} 15...
Nb8 {[%clk 0:02:26.7]} 16. Bd4 {[%clk 0:02:10.2]} 16... Nbd7 {[%clk 0:02:20.6]}
17. Rxc8 {[%clk 0:01:59.2]} 17... Rxc8 {[%clk 0:02:20.2]} 18. Qa1 {[%clk
0:01:58.3]} 18... Qd8 {[%clk 0:02:07]} 19. Bxb5 {[%clk 0:01:52.8]} 19... Nc5
{[%clk 0:02:06.6]} 20. Re1 {[%clk 0:01:48.3]} 20... a5 {[%clk 0:01:57.3]} 21. b4
{[%clk 0:01:46.5]} 21... axb4 {[%clk 0:01:54]} 22. axb4 {[%clk 0:01:47.4]} 22...
Ra8 {[%clk 0:01:53.4]} 23. Qb2 {[%clk 0:01:44.7]} 23... Na4 {[%clk 0:01:53.2]}
24. Qb3 {[%clk 0:01:41.6]} 24... Nb6 {[%clk 0:01:47.7]} 25. Qe3 {[%clk
0:01:35.9]} 25... Nbd7 {[%clk 0:01:39.6]} 26. Bc6 {[%clk 0:01:35.9]} 26... Ng4
{[%clk 0:01:34.5]} 27. Qg1 {[%clk 0:01:35.2]} 27... Bxd4 {[%clk 0:01:26.3]} 28.
Qxd4 {[%clk 0:01:36.1]} 28... Rb8 {[%clk 0:01:24.3]} 29. b5 {[%clk 0:01:25.4]}
29... Nc5 {[%clk 0:01:22.7]} 30. e5 {[%clk 0:01:21.5]} 30... Nh6 {[%clk
0:01:17.5]} 31. exd6 {[%clk 0:01:09.7]} 31... exd6 {[%clk 0:01:18.4]} 32. Ne4
{[%clk 0:00:57.7]} 32... Nf5 {[%clk 0:01:17.3]} 33. Qc3 {[%clk 0:00:29.1]} 33...
Nxe4 {[%clk 0:01:07.2]} 34. Rxe4 {[%clk 0:00:30]} 34... Bxc6 {[%clk 0:00:56]}
35. bxc6 {[%clk 0:00:30.9]} 35... Qc7 {[%clk 0:00:39.2]} 36. g4 {[%clk
0:00:26.6]} 36... Ne7 {[%clk 0:00:39]} 37. Qc4 {[%clk 0:00:15.1]} 37... Rb1+
{[%clk 0:00:37.6]} 38. Kg2 {[%clk 0:00:15.7]} 38... Rb2+ {[%clk 0:00:37.6]} 39.
Kg3 {[%clk 0:00:15.8]} 39... Qa7 {[%clk 0:00:33.5]} 40. Qd4 {[%clk 0:00:04.8]}
40... Qa2 {[%clk 0:00:31.8]} 41. Rxe7 {[%clk 0:00:03.4]} 41... Rg2+ {[%clk
0:00:29]} 42. Kh3 {[%clk 0:00:03.9]} 42... Re2 {[%clk 0:00:17.6]} 43. Rxe2
{[%clk 0:00:03.6]} 43... Qxe2 {[%clk 0:00:15.5]} 44. Kg3 {[%clk 0:00:04.2]}
44... Qe7 {[%clk 0:00:12.7]} 45. Qc4 {[%clk 0:00:04.2]} 45... Qc7 {[%clk
0:00:11.9]} 46. h3 {[%clk 0:00:04.9]} 46... h6 {[%clk 0:00:10.4]} 47. Qb5 {[%clk
0:00:05.4]} 47... Qa7 {[%clk 0:00:08.2]} 48. Qb7 {[%clk 0:00:05.7]} 48... Qa5
{[%clk 0:00:07.5]} 49. Qb8+ {[%clk 0:00:05.6]} 49... Kh7 {[%clk 0:00:06.4]} 50.
Qxd6 {[%clk 0:00:06.5]} 50... Qa1 {[%clk 0:00:04.6]} 51. Qe5 {[%clk 0:00:06.4]}
51... Qd1 {[%clk 0:00:04]} 52. c7 {[%clk 0:00:06.2]} 52... Qc2 {[%clk
0:00:03.4]} 53. d6 {[%clk 0:00:06.1]} 53... g5 {[%clk 0:00:01.6]} 54. fxg5
{[%clk 0:00:06]} 54... hxg5 {[%clk 0:00:01.9]} 55. Qf5+ {[%clk 0:00:06]} 1-0

[Event "Early-Titled-Tuesday-Blitz-February-20-2024"]
[Site "Chess.com"]
[Date "2024.02.20"]
[Round "2"]
[White "BogdanDeac"]
[Black "Timerkhanov"]
[Result "1-0"]
[WhiteElo "3044"]
[BlackElo "2650"]
[TimeControl "180+1"]
[EndTime "8:18:39 PST"]
[Termination "BogdanDeac won on time"]

1. d4 {[%clk 0:03:00.9]} 1... d5 {[%clk 0:02:59.8]} 2. Nf3 {[%clk 0:03:00.8]}
2... Nf6 {[%clk 0:02:59.5]} 3. Bf4 {[%clk 0:03:01.4]} 3... c5 {[%clk 0:02:59.5]}
4. e3 {[%clk 0:03:01.7]} 4... Nc6 {[%clk 0:02:59.8]} 5. c3 {[%clk 0:03:02.3]}
5... Qb6 {[%clk 0:02:58.2]} 6. Qc2 {[%clk 0:03:02]} 6... g6 {[%clk 0:02:55.8]}
7. Nbd2 {[%clk 0:03:00.7]} 7... Bg7 {[%clk 0:02:53.1]} 8. Be2 {[%clk 0:02:50.5]}
8... O-O {[%clk 0:02:51.2]} 9. O-O {[%clk 0:02:50.3]} 9... Bf5 {[%clk
0:02:33.1]} 10. dxc5 {[%clk 0:02:45.2]} 10... Qxc5 {[%clk 0:02:31.4]} 11. Qb3
{[%clk 0:02:45.8]} 11... Ne4 {[%clk 0:02:19.4]} 12. Nxe4 {[%clk 0:01:39]} 12...
Bxe4 {[%clk 0:02:18.7]} 13. Nd2 {[%clk 0:01:38.8]} 13... Bf5 {[%clk 0:02:13.8]}
14. Rfd1 {[%clk 0:00:30.6]} 14... e5 {[%clk 0:02:11.3]} 15. Bg3 {[%clk 0:00:31]}
15... Be6 {[%clk 0:01:51.5]} 16. Qa4 {[%clk 0:00:25.7]} 16... Rfd8 {[%clk
0:01:46.1]} 17. Rac1 {[%clk 0:00:24.8]} 17... Rac8 {[%clk 0:01:44.1]} 18. Nf3
{[%clk 0:00:24.5]} 18... h6 {[%clk 0:01:22.8]} 19. b4 {[%clk 0:00:23.9]} 19...
Qd6 {[%clk 0:00:51.8]} 20. b5 {[%clk 0:00:24]} 20... Ne7 {[%clk 0:00:50.5]} 21.
c4 {[%clk 0:00:20.7]} 21... Nf5 {[%clk 0:00:42.5]} 22. cxd5 {[%clk 0:00:16]}
22... Rxc1 {[%clk 0:00:42.3]} 23. Rxc1 {[%clk 0:00:15.4]} 23... Nxg3 {[%clk
0:00:42.6]} 24. hxg3 {[%clk 0:00:15.4]} 24... Bxd5 {[%clk 0:00:42.3]} 25. Qxa7
{[%clk 0:00:14.9]} 25... Qb4 {[%clk 0:00:29.9]} 26. Rd1 {[%clk 0:00:10.9]} 26...
Qe7 {[%clk 0:00:24.3]} 27. Qa5 {[%clk 0:00:07.8]} 27... Bf6 {[%clk 0:00:22.8]}
28. a4 {[%clk 0:00:05.4]} 28... Bb3 {[%clk 0:00:20.1]} 29. Rxd8+ {[%clk
0:00:05.3]} 29... Qxd8 {[%clk 0:00:20.2]} 30. Qxd8+ {[%clk 0:00:05.9]} 30...
Bxd8 {[%clk 0:00:20.7]} 31. Nxe5 {[%clk 0:00:06.5]} 31... Bc7 {[%clk 0:00:13.7]}
32. Nd3 {[%clk 0:00:05.6]} 32... b6 {[%clk 0:00:10.4]} 33. Nb2 {[%clk
0:00:05.2]} 33... Be5 {[%clk 0:00:10.8]} 34. Nc4 {[%clk 0:00:05.4]} 34... Bxc4
{[%clk 0:00:09.6]} 35. Bxc4 {[%clk 0:00:05.5]} 35... Kg7 {[%clk 0:00:10.1]} 36.
f4 {[%clk 0:00:04.6]} 36... Bc3 {[%clk 0:00:09.2]} 37. g4 {[%clk 0:00:05]} 37...
Bd2 {[%clk 0:00:09.5]} 38. Kf2 {[%clk 0:00:05.2]} 38... g5 {[%clk 0:00:08.8]}
39. g3 {[%clk 0:00:05.4]} 39... Bc1 {[%clk 0:00:08.9]} 40. Ke2 {[%clk 0:00:05]}
40... Ba3 {[%clk 0:00:08.4]} 41. a5 {[%clk 0:00:04.4]} 41... bxa5 {[%clk
0:00:08.4]} 42. b6 {[%clk 0:00:04.7]} 42... Bd6 {[%clk 0:00:09]} 43. Bb3 {[%clk
0:00:04.6]} 43... Kf6 {[%clk 0:00:09.1]} 44. Kd3 {[%clk 0:00:04.3]} 44... Ke7
{[%clk 0:00:09.5]} 45. Kd4 {[%clk 0:00:04.4]} 45... f6 {[%clk 0:00:09.4]} 46.
Kd5 {[%clk 0:00:05]} 46... Bb8 {[%clk 0:00:08.1]} 47. Kc6 {[%clk 0:00:05.1]}
47... Kd8 {[%clk 0:00:08.4]} 48. Kb7 {[%clk 0:00:04.7]} 48... Bd6 {[%clk
0:00:08.3]} 49. Ka7 {[%clk 0:00:04.3]} 49... Bc5 {[%clk 0:00:04.5]} 50. e4
{[%clk 0:00:03.4]} 50... Bd4 {[%clk 0:00:04]} 51. Ka6 {[%clk 0:00:03.1]} 51...
Kc8 {[%clk 0:00:03.3]} 52. Kxa5 {[%clk 0:00:02.8]} 52... Kb8 {[%clk 0:00:03.4]}
53. Kb5 {[%clk 0:00:02.8]} 53... Bf2 {[%clk 0:00:03.4]} 54. e5 {[%clk
0:00:03.1]} 54... fxe5 {[%clk 0:00:03.5]} 55. fxe5 {[%clk 0:00:03.7]} 55... Bxg3
{[%clk 0:00:04.1]} 56. e6 {[%clk 0:00:04.3]} 56... Bd6 {[%clk 0:00:04.8]} 57.
Kc6 {[%clk 0:00:04.8]} 57... Bb4 {[%clk 0:00:03.9]} 58. Bd5 {[%clk 0:00:05.2]}
58... Ba3 {[%clk 0:00:02.2]} 59. Kd7 {[%clk 0:00:04.9]} 1-0